bitfinex/quotes_SOLUSD_20220207
["timestamp","ask_amount","ask_price","bid_price","bid_amount"]
[1644259389852,47.93717498,120.2,120.13,5.65386056]
[1644259390052,24.5588,120.21,120.13,11.65386056]
[1644259390255,24.5588,120.21,120.13,13.59871615]
[1644259390457,24.5588,120.21,120.13,1.94485559]
[1644259390654,24.5588,120.21,120.12,22.9965]
[1644259390853,24.5588,120.21,120.12,6.0]
[1644259391057,55.0384,120.21,120.08,10.16]
[1644259391256,2.14682857,120.2,120.09,22.9844]
[1644259391456,38.91425649,120.19,120.1,43.26631122]
[1644259391653,38.91425649,120.19,120.1,49.26631122]
[1644259392053,39.16425649,120.19,120.1,49.26631122]
[1644259392256,51.15425649,120.19,120.1,49.51631122]
[1644259392458,51.15425649,120.19,120.1,62.00331122]
[1644259393154,51.15425649,120.19,120.1,61.75331122]
[1644259393559,51.15425649,120.19,120.1,43.26631122]
[1644259394156,57.15425649,120.19,120.1,43.26631122]
[1644259394355,51.15425649,120.19,120.1,43.26631122]
[1644259394554,57.15425649,120.19,120.1,43.26631122]
[1644259394755,51.15425649,120.19,120.11,0.024]
[1644259395557,57.15425649,120.19,120.11,0.024]
[1644259396758,23.0812,120.18,120.11,0.024]
[1644259396958,36.04029276,120.17,120.11,0.024]
[1644259397161,36.04029276,120.17,120.1,43.26631122]
[1644259397359,36.04029276,120.17,120.09,23.0084]
[1644259397559,36.04029276,120.17,120.09,29.2584]
[1644259398463,23.0812,120.18,120.1,48.54446037]
[1644259398664,23.0812,120.18,120.1,54.56846037]
[1644259398861,23.0812,120.18,120.1,54.81846037]
[1644259399463,44.580638,120.17,120.1,54.81846037]
[1644259399661,44.580638,120.17,120.1,6.25]
[1644259399861,44.580638,120.17,120.09,45.6344]
[1644259400265,44.830638,120.17,120.09,45.6344]
[1644259400664,44.830638,120.17,120.09,82.25589529]
[1644259401065,44.580638,120.17,120.09,82.25589529]
[1644259401269,44.580638,120.17,120.09,82.50589529]
[1644259401666,44.580638,120.17,120.09,78.34389529]
[1644259401865,23.0812,120.18,120.09,78.36789529]
[1644259402066,23.0812,120.18,120.1,0.024]
[1644259402866,42.49499852,120.17,120.1,0.024]
[1644259403666,42.49499852,120.17,120.08,2.38701441]
[1644259404067,42.49499852,120.17,120.09,35.33563031]
[1644259404869,42.74499852,120.17,120.09,35.31163031]
[1644259405167,42.74499852,120.17,120.09,0.024]
[1644259406268,42.74499852,120.17,120.09,38.05217323]
[1644259407771,42.74499852,120.17,120.09,38.02817323]
[1644259407971,42.74499852,120.17,120.09,0.25]
[1644259408171,42.74499852,120.17,120.08,42.4484]
[1644259408373,23.009,120.16,120.08,42.1984]
[1644259408572,29.009,120.16,120.08,29.7093]
[1644259408772,39.723,120.16,120.08,23.7093]
[1644259408976,34.19292458,120.15,120.08,65.11031119]
[1644259410174,34.19292458,120.15,120.08,65.36031119]
[1644259411078,34.19292458,120.15,120.08,23.7093]
[1644259411583,34.19292458,120.15,120.08,0.024]
[1644259411877,34.19292458,120.15,120.08,2.37068307]
[1644259412279,34.44292458,120.15,120.08,2.37068307]
[1644259412479,34.44292458,120.15,120.08,2.62068307]
[1644259412778,34.19292458,120.15,120.08,0.25]
[1644259412980,34.44292458,120.15,120.07,21.12395751]
[1644259413179,34.19292458,120.15,120.08,2.37083438]
[1644259413580,34.19292458,120.15,120.08,2.62083438]
[1644259413980,34.19292458,120.15,120.08,0.25]
[1644259414784,34.19292458,120.15,120.07,15.12395751]
[1644259414984,34.19292458,120.15,120.08,2.37140817]
[1644259415286,34.19292458,120.15,120.08,2.62140817]
[1644259415486,34.19292458,120.15,120.08,0.25]
[1644259415683,40.19292458,120.15,120.08,0.25]
[1644259416085,40.44292458,120.15,120.07,0.024]
[1644259416287,22.8815,120.14,120.07,0.024]
[1644259416486,41.45604399,120.13,120.06,33.857]
[1644259417085,47.45604399,120.13,120.06,33.857]
[1644259417286,41.45604399,120.13,120.06,33.857]
[1644259417486,47.45604399,120.13,120.06,31.857]
[1644259417887,47.45604399,120.13,120.06,27.695]
[1644259418387,47.45604399,120.13,120.05,2.38365751]
[1644259418588,59.44604399,120.13,120.05,0.024]
[1644259418788,22.737,120.12,120.05,0.024]
[1644259418987,34.727,120.12,120.04,0.2481786]
[1644259419188,40.727,120.12,120.04,0.2481786]
[1644259419387,45.48957003,120.11,120.04,0.2481786]
[1644259419589,51.48957003,120.11,120.04,0.2481786]
[1644259419791,23.4452,120.1,120.04,0.2481786]
[1644259419991,36.05516859,120.09,120.04,0.2481786]
[1644259420590,42.05516859,120.09,120.04,0.2481786]
[1644259423005,42.30516859,120.09,120.04,0.2481786]
[1644259423405,54.29516859,120.09,120.04,0.2481786]
[1644259424008,66.79576859,120.09,120.04,0.2481786]
[1644259427210,35.372,120.08,120.04,0.2481786]
[1644259427409,40.84590183,120.07,120.02,0.024]
[1644259427611,46.84590183,120.07,120.0,0.57471918]
[1644259427808,11.99,120.06,120.0,0.57471918]
[1644259428208,17.99,120.06,120.0,0.07656456]
[1644259428409,17.99,120.06,119.97,0.17030347]
[1644259428410,41.5246835,120.04,119.97,0.17030347]
[1644259428610,72.0205835,120.04,119.97,0.17030347]
[1644259428810,23.9291,120.03,119.97,0.17030347]
[1644259429208,29.9291,120.03,119.97,0.17030347]
[1644259429411,43.46649491,120.02,119.97,0.17030347]
[1644259429608,49.46649491,120.02,119.97,0.17030347]
[1644259430810,61.45649491,120.02,119.97,0.17030347]
[1644259431011,49.46649491,120.02,119.97,0.17030347]
[1644259431212,43.71649491,120.02,119.97,0.17030347]
[1644259431612,43.46649491,120.02,119.97,0.17030347]
[1644259431918,24.3654,120.07,119.97,0.17030347]
[1644259432113,35.3121,120.06,119.97,2.10444404]
[1644259432313,35.3121,120.06,119.97,0.17030347]
[1644259432915,48.30580134,120.05,119.97,0.17030347]
[1644259433214,23.4564,120.04,119.97,36.25945325]
[1644259433416,36.3554,120.07,119.97,36.25945325]
[1644259433715,11.99,120.1,119.97,44.44475562]
[1644259433915,22.9172,120.11,119.97,60.59975562]
[1644259434115,28.9172,120.11,119.97,60.59975562]
[1644259434423,39.02644734,120.1,119.97,60.59975562]
[1644259434622,45.02644734,120.1,119.99,28.40313003]
[1644259434816,45.02644734,120.1,120.0,23.842]
[1644259435314,45.02644734,120.1,120.0,24.092]
[1644259435715,45.27644734,120.1,120.0,36.74332912]
[1644259436217,39.02644734,120.1,120.0,36.49332912]
[1644259436414,39.02644734,120.1,120.0,83.44383401]
[1644259437216,39.02644734,120.1,120.0,83.19383401]
[1644259437618,45.02644734,120.1,120.0,83.19383401]
[1644259437816,45.02644734,120.1,120.0,36.49332912]
[1644259438016,56.01644734,120.1,120.0,23.99512912]
[1644259439318,58.16327591,120.1,120.0,0.15312912]
[1644259439919,62.32727591,120.1,120.0,0.15312912]
[1644259440118,62.57727591,120.1,120.0,0.15312912]
[1644259440919,58.41327591,120.1,120.0,0.15312912]
[1644259441521,70.91517591,120.1,120.0,0.15312912]
[1644259441923,120.70517591,120.1,120.0,0.15312912]
[1644259442517,70.91517591,120.1,120.0,0.15312912]
[1644259443321,120.70517591,120.1,120.0,0.15312912]
[1644259443719,70.91517591,120.1,120.0,0.17712912]
[1644259444020,75.07917591,120.1,120.0,0.17712912]
[1644259445118,149.88,120.09,120.0,0.17712912]
[1644259445317,72.4458,120.08,120.0,0.17712912]
[1644259445518,72.4458,120.08,120.0,0.15312912]
[1644259445717,78.4458,120.08,120.0,0.15312912]
[1644259445920,41.94583574,120.07,120.0,0.15312912]
[1644259446217,11.99,120.06,120.0,0.15312912]
[1644259446418,60.88675808,120.05,120.0,0.15312912]
[1644259446618,78.87675808,120.05,120.0,0.15312912]
[1644259452225,81.02358665,120.05,120.0,0.15312912]
[1644259453125,149.88,120.04,120.0,0.15312912]
[1644259453325,63.99,120.03,120.0,0.15312912]
[1644259453524,3.03219997,120.02,120.0,0.15312912]
[1644259453726,25.98519997,120.02,120.0,0.15312912]
[1644259453927,52.32833104,120.01,120.0,0.15312912]
[1644259454126,58.32833104,120.01,120.0,0.15312912]
[1644259457728,52.32833104,120.01,120.0,3.18532909]
[1644259458131,52.32833104,120.01,120.0,0.15312912]
[1644259459133,58.32833104,120.01,119.97,0.01717435]
[1644259459334,60.47515961,120.01,119.97,0.01717435]
[1644259459535,23.537,120.0,119.97,0.01717435]
[1644259459936,29.537,120.0,119.97,0.01717435]
[1644259460143,48.74573416,119.99,119.97,0.01717435]
[1644259460537,54.74573416,119.99,119.97,0.01717435]
[1644259461337,48.74573416,119.99,119.97,0.01717435]
[1644259462742,3.03219997,119.98,119.97,0.01717435]
[1644259463939,48.74573416,119.99,119.97,0.01717435]
[1644259464240,48.74573416,119.99,119.98,3.03219997]
[1644259465245,51.77793413,119.99,119.97,0.01717435]
[1644259465642,57.77793413,119.99,119.97,0.01717435]
[1644259466143,71.9147627,119.99,119.97,0.01717435]
[1644259468044,84.4263627,119.99,119.97,0.01717435]
[1644259468245,120.0,119.98,119.87,12.5118]
[1644259468447,0.30115722,119.96,119.84,2.35965751]
[1644259468647,0.30115722,119.96,119.83,2.36772941]
[1644259468648,11.99,119.95,119.83,2.36772941]
[1644259468847,23.8293,119.94,119.82,2.38772941]
[1644259469046,12.5175,119.93,119.82,0.02]
[1644259469248,40.0,119.91,119.81,27.3155]
[1644259469447,79.45269046,119.91,119.81,23.1455]
[1644259469665,14.13682857,119.9,119.81,23.1455]
[1644259469864,34.80690772,119.89,119.81,34.29208535]
[1644259470065,40.80690772,119.89,119.81,40.29208535]
[1644259470469,34.80690772,119.89,119.81,40.29208535]
[1644259470664,40.80690772,119.89,119.81,52.81028535]
[1644259470865,34.80690772,119.89,119.81,19.0382]
[1644259471066,34.80690772,119.89,119.81,25.17557]
[1644259471868,34.80690772,119.89,119.81,69.73025846]
[1644259472267,34.80690772,119.89,119.81,69.23025846]
[1644259472971,10.02183812,119.95,119.81,69.23025846]
[1644259473168,11.99,119.94,119.82,24.683]
[1644259473369,11.99,119.94,119.83,6.13635]
[1644259473571,11.99,119.94,119.82,28.853]
[1644259473572,2.14682857,119.93,119.82,24.683]
[1644259473769,2.14682857,119.93,119.82,30.683]
[1644259473972,46.36875607,119.92,119.83,8.89847871]
[1644259474170,52.36875607,119.92,119.82,30.683]
[1644259474369,66.50558464,119.92,119.82,37.1996]
[1644259474571,66.50558464,119.92,119.82,24.683]
[1644259474771,66.50558464,119.92,119.81,0.02]
[1644259474972,22.9074,119.91,119.81,0.02]
[1644259475173,60.78624566,119.9,119.81,0.02]
[1644259475371,74.92307423,119.9,119.81,0.02]
[1644259475575,14.66912857,119.89,119.81,0.02]
[1644259475773,71.18122037,119.88,119.81,0.02]
[1644259475972,85.31804894,119.88,119.81,0.02]
[1644259476176,2.14682857,119.87,119.81,0.02]
[1644259476373,11.99,119.86,119.81,0.02]
[1644259476574,17.99,119.86,119.81,0.02]
[1644259476774,20.13682857,119.86,119.81,0.02]
[1644259476976,46.00142776,119.85,119.81,0.02]
[1644259477175,52.00142776,119.85,119.81,0.02]
[1644259477675,46.00142776,119.85,119.81,0.02]
[1644259477880,52.00142776,119.85,119.81,0.02]
[1644259478576,46.00142776,119.85,119.81,0.02]
[1644259480278,40.0,119.84,119.79,0.15617984]
[1644259480478,57.99142776,119.85,119.79,0.15617984]
[1644259482678,63.99142776,119.85,119.79,0.15617984]
[1644259484081,57.99142776,119.85,119.79,0.15617984]
[1644259485483,46.00142776,119.85,119.79,0.15617984]
[1644259485684,52.00142776,119.85,119.79,0.15617984]
[1644259485889,52.31664312,119.85,119.79,0.15617984]
[1644259487090,11.99,119.84,119.79,0.15617984]
[1644259488686,17.99,119.84,119.79,0.15617984]
[1644259489987,23.5487,119.83,119.79,0.15617984]
[1644259490188,29.5487,119.83,119.79,0.15617984]
[1644259491289,23.5487,119.83,119.79,0.15617984]
[1644259492092,29.5487,119.83,119.79,0.15617984]
[1644259492392,53.4317,119.83,119.79,0.15617984]
[1644259495896,65.9623,119.83,119.79,0.15617984]
[1644259496099,94.0,119.82,119.79,0.15617984]
[1644259496298,15.02219997,119.81,119.79,0.15617984]
[1644259496698,21.02219997,119.81,119.79,0.15617984]
[1644259496897,44.94592882,119.8,119.79,0.15617984]
[1644259497102,74.98532882,119.8,119.79,0.15617984]
[1644259497298,74.98532882,119.8,119.73,0.024]
[1644259497498,68.98532882,119.8,119.72,0.58023032]
[1644259497701,68.98532882,119.8,119.72,2.50831599]
[1644259497898,68.98532882,119.8,119.72,2.53231599]
[1644259498299,74.98532882,119.8,119.72,0.60423032]
[1644259498703,75.23532882,119.8,119.72,2.53231599]
[1644259499000,68.98532882,119.8,119.72,2.53231599]
[1644259499400,68.98532882,119.8,119.73,1.18416398]
[1644259499600,68.98532882,119.8,119.73,1.20816398]
[1644259499801,68.98532882,119.8,119.73,1.45816398]
[1644259500101,68.98532882,119.8,119.73,0.024]
[1644259500301,68.98532882,119.8,119.72,1.7883943]
[1644259500503,68.98532882,119.8,119.73,1.92808567]
[1644259500702,69.23532882,119.8,119.73,1.95208567]
[1644259500907,69.23532882,119.8,119.73,0.024]
[1644259501103,69.23532882,119.8,119.72,1.7643943]
[1644259501310,69.23532882,119.8,119.72,1.7883943]
[1644259501908,75.23532882,119.8,119.72,1.7883943]
[1644259503925,75.23532882,119.8,119.74,0.04934736]
[1644259505823,87.22532882,119.8,119.74,0.04934736]
[1644259506224,87.22532882,119.8,119.69,2.35965751]
[1644259506427,261.85581068,119.8,119.68,2.35965751]
[1644259506626,261.85581068,119.8,119.65,25.56005751]
[1644259506627,6.32182857,119.79,119.65,25.56005751]
[1644259506824,11.99,119.78,119.66,2.37313592]
[1644259507124,22.8393,119.77,119.65,22.7004]
[1644259507429,47.25342815,119.76,119.64,12.3027]
[1644259507625,24.3534,119.75,119.64,12.3027]
[1644259507825,11.99,119.74,119.64,12.3027]
[1644259508224,17.99,119.74,119.64,12.3027]
[1644259508425,46.51145996,119.73,119.64,12.3027]
[1644259508624,11.99,119.72,119.64,12.3027]
[1644259508826,40.43452755,119.71,119.64,18.3027]
[1644259509229,46.43452755,119.71,119.65,1.92820942]
[1644259509630,11.99,119.7,119.64,6.0]
[1644259510129,42.83532603,119.69,119.64,1.92820942]
[1644259510532,42.83532603,119.69,119.64,0.25]
[1644259510731,42.83532603,119.69,119.61,26.50155751]
[1644259510929,48.83532603,119.69,119.63,1.92820942]
[1644259511129,48.83532603,119.69,119.6,4.28786693]
[1644259511331,49.08532603,119.69,119.6,4.28786693]
[1644259511536,49.08532603,119.69,119.61,4.29360533]
[1644259511730,49.08532603,119.69,119.61,1.42820942]
[1644259511936,49.08532603,119.69,119.61,7.42820942]
[1644259512132,42.83532603,119.69,119.61,7.42820942]
[1644259512537,48.83532603,119.69,119.61,6.0]
[1644259512933,48.83532603,119.69,119.6,23.616]
[1644259513131,48.83532603,119.69,119.6,29.616]
[1644259514333,42.83532603,119.69,119.6,29.616]
[1644259514836,42.83532603,119.69,119.61,220.0]
[1644259515036,43.08532603,119.69,119.61,261.02420835]
[1644259515234,42.83532603,119.69,119.61,267.27420835]
[1644259517336,43.08532603,119.69,119.61,267.02420835]
[1644259517535,43.08532603,119.69,119.61,264.52420835]
[1644259518236,42.83532603,119.69,119.61,264.52420835]
[1644259518836,42.83532603,119.69,119.61,264.77420835]
[1644259519439,42.83532603,119.69,119.61,223.75]
[1644259519736,24.7145,119.71,119.61,223.75]
[1644259519938,12.7245,119.71,119.61,238.21442697]
[1644259520236,12.9745,119.71,119.61,238.21442697]
[1644259520438,12.7245,119.71,119.61,238.21442697]
[1644259520839,40.35501516,119.7,119.62,38.17399339]
[1644259521238,40.35501516,119.7,119.62,38.42399339]
[1644259521638,40.35501516,119.7,119.62,0.274]
[1644259521842,40.60501516,119.7,119.62,0.024]
[1644259522037,46.60501516,119.7,119.62,0.024]
[1644259522237,58.59501516,119.7,119.62,0.024]
[1644259522737,24.5868,119.69,119.62,19.41317832]
[1644259522940,24.5868,119.69,119.61,221.024]
[1644259523144,30.5868,119.69,119.61,221.024]
[1644259523944,12.7245,119.71,119.62,40.81207082]
[1644259524143,11.99,119.71,119.62,55.27519779]
[1644259524345,24.4434,119.74,119.63,1.92692697]
[1644259524545,24.4434,119.74,119.63,32.70472697]
[1644259524744,24.4434,119.74,119.63,26.70472697]
[1644259524945,42.33441474,119.73,119.64,16.00028403]
[1644259525146,48.33441474,119.73,119.64,16.00028403]
[1644259525346,48.33441474,119.73,119.64,16.25028403]
[1644259525757,24.4434,119.74,119.64,16.25028403]
[1644259525945,36.2559,119.77,119.64,36.71742283]
[1644259526146,1.676,119.82,119.66,155.0]
[1644259526347,13.666,119.82,119.67,11.99]
[1644259526546,4.175,119.86,119.68,154.055]
[1644259526747,37.54661091,119.85,119.7,16.59405727]
[1644259526951,37.54661091,119.85,119.7,166.47405727]
[1644259527148,37.54661091,119.85,119.7,172.72405727]
[1644259527346,37.54661091,119.85,119.72,189.0496236]
[1644259527647,12.5206,119.91,119.73,149.88]
[1644259527853,6.32082857,119.92,119.73,170.60748948]
[1644259528046,2.14682857,119.9,119.75,149.88]
[1644259528246,2.14682857,119.9,119.76,11.99]
[1644259528546,2.14682857,119.9,119.77,41.7273]
[1644259528745,38.82991559,119.89,119.78,11.99]
[1644259529145,35.97674416,119.89,119.78,12.24]
[1644259529550,2.14682857,119.88,119.78,12.24]
[1644259529748,45.92769103,119.87,119.78,12.24]
[1644259530148,2.14682857,119.86,119.78,12.24]
[1644259530347,2.14682857,119.86,119.77,12.5212]
[1644259530650,2.14682857,119.86,119.75,11.99]
[1644259530848,45.65525977,119.85,119.72,4.173]
[1644259531047,45.65525977,119.85,119.72,11.99]
[1644259531348,45.65525977,119.85,119.72,29.36767]
[1644259531349,42.34646768,119.81,119.72,29.36767]
[1644259531950,42.34646768,119.81,119.74,34.89271464]
[1644259532152,2.14682857,119.86,119.74,52.88271464]
[1644259532754,8.14682857,119.86,119.74,53.13271464]
[1644259532950,8.14682857,119.86,119.75,12.523]
[1644259532951,20.67052857,119.86,119.75,12.523]
[1644259533153,50.50346303,119.85,119.75,12.523]
[1644259533350,50.50346303,119.85,119.75,12.773]
[1644259533550,2.14682857,119.84,119.75,12.773]
[1644259533751,2.14682857,119.84,119.75,12.523]
[1644259533951,8.14682857,119.84,119.73,4.174]
[1644259534152,36.83682857,119.84,119.68,41.7557]
[1644259534353,36.83682857,119.84,119.7,6.0]
[1644259534354,2.14682857,119.83,119.7,6.0]
[1644259534554,53.68476845,119.82,119.7,6.0]
[1644259534957,2.14682857,119.81,119.68,11.99]
[1644259535155,11.99,119.8,119.67,11.99]
[1644259535355,24.5206,119.8,119.67,12.5311]
[1644259535555,2.14682857,119.79,119.67,12.5311]
[1644259535758,14.13682857,119.81,119.68,4.176]
[1644259536055,2.14682857,119.79,119.68,40.65480439]
[1644259536256,46.57530676,119.78,119.69,12.5289]
[1644259536960,46.57530676,119.78,119.7,25.01072189]
[1644259537156,46.57530676,119.78,119.7,47.17572189]
[1644259537360,46.57530676,119.78,119.7,47.42572189]
[1644259537759,46.57530676,119.78,119.7,22.165]
[1644259537958,46.57530676,119.78,119.7,17.99]
[1644259538962,46.57530676,119.78,119.7,40.3587083]
[1644259539566,46.57530676,119.78,119.7,40.6087083]
[1644259539764,46.57530676,119.78,119.7,18.24]
[1644259540164,46.57530676,119.78,119.7,18.264]
[1644259540567,127.49512857,119.83,119.7,18.264]
[1644259540766,83.5813,119.83,119.7,18.24]
[1644259540967,89.5813,119.83,119.71,12.5512]
[1644259541168,89.5813,119.83,119.72,0.024]
[1644259541367,14.67552857,119.82,119.72,0.024]
[1644259541567,41.4510915,119.81,119.7,50.03179184]
[1644259541767,43.59792007,119.81,119.73,0.024]
[1644259541968,47.7010915,119.81,119.71,0.024]
[1644259543973,47.7010915,119.81,119.71,12.5513]
[1644259544173,47.4510915,119.81,119.72,27.96673444]
[1644259544374,47.4510915,119.81,119.61,75.01131038]
[1644259544375,2.14682857,119.71,119.61,75.01131038]
[1644259544602,150.202517,119.66,119.57,0.41800349]
[1644259544788,11.99,119.7,119.57,0.41800349]
[1644259544789,47.18147699,119.68,119.57,0.41800349]
[1644259544989,4.36782043,119.68,119.57,0.41800349]
[1644259545193,16.35782043,119.68,119.57,0.41800349]
[1644259545389,12.544,119.67,119.57,43.99792038]
[1644259545589,24.534,119.67,119.57,43.99792038]
[1644259545789,12.24,119.67,119.57,43.99792038]
[1644259545992,18.24,119.67,119.57,43.99792038]
[1644259546189,11.99,119.67,119.57,55.53992038]
[1644259546590,4.36782043,119.68,119.59,47.14216891]
[1644259547190,4.36782043,119.68,119.59,66.38406129]
[1644259547490,4.36782043,119.68,119.61,43.74120706]
[1644259548190,4.36782043,119.68,119.61,43.99120706]
[1644259548590,4.36782043,119.68,119.61,56.52850706]
[1644259549092,11.99,119.73,119.62,109.0]
[1644259549292,11.99,119.73,119.63,46.89557826]
[1644259549492,11.99,119.75,119.65,12.5338]
[1644259549692,35.3317,119.79,119.65,12.7838]
[1644259549891,6.111,119.79,119.66,11.99]
[1644259550092,6.111,119.79,119.66,19.93930213]
[1644259550298,6.111,119.79,119.68,41.7481]
[1644259550492,6.111,119.79,119.69,11.99]
[1644259550694,6.111,119.79,119.69,73.2377021]
[1644259550899,6.111,119.79,119.69,79.2377021]
[1644259551293,6.111,119.79,119.7,4.175]
[1644259551496,6.111,119.79,119.71,53.7344]
[1644259551693,6.111,119.79,119.71,59.9844]
[1644259551894,6.111,119.79,119.72,12.5234]
[1644259552094,6.111,119.79,119.72,51.89400753]
[1644259552295,6.111,119.79,119.72,52.14400753]
[1644259553695,6.111,119.79,119.72,51.89400753]
[1644259553897,6.111,119.79,119.73,11.99]
[1644259554095,6.111,119.79,119.74,40.94415112]
[1644259554698,0.001,119.79,119.73,41.7411]
[1644259554899,24.3742,119.86,119.74,11.99]
[1644259555098,27.9321,119.89,119.75,4.173]
[1644259555298,28.3249,119.92,119.76,11.99]
[1644259555500,6.111,119.91,119.76,11.99]
[1644259555797,1.24546982,119.9,119.8,41.20656016]
[1644259555996,6.111,119.89,119.8,41.20656016]
[1644259556196,8.14682857,119.89,119.8,41.20656016]
[1644259556896,20.66702857,119.89,119.8,41.20656016]
[1644259557297,12.5202,119.89,119.8,41.20656016]
[1644259557498,18.5202,119.89,119.8,41.20656016]
[1644259559000,20.66702857,119.89,119.8,41.20656016]
[1644259560102,32.65702857,119.89,119.8,41.20656016]
[1644259560704,12.5262,119.86,119.8,41.20656016]
[1644259560905,16.162,119.85,119.8,41.20656016]
[1644259561103,24.30882857,119.85,119.8,41.20656016]
[1644259561304,2.14682857,119.84,119.8,41.20656016]
[1644259561708,24.5133,119.86,119.8,41.20656016]
[1644259561904,12.5233,119.86,119.8,41.20656016]
[1644259562303,18.5233,119.86,119.8,41.20656016]
[1644259563104,6.111,119.85,119.8,41.20656016]
[1644259563406,0.001,119.85,119.8,51.23656016]
[1644259563609,23.7571,119.93,119.8,57.23656016]
[1644259563803,23.7571,119.93,119.8,57.48656016]
[1644259564210,37.82867663,119.93,119.8,70.00476016]
[1644259564614,43.82867663,119.93,119.8,70.00476016]
[1644259564904,42.2716,119.93,119.8,70.00476016]
[1644259565505,42.2716,119.93,119.8,74.17576016]
[1644259565705,42.2716,119.93,119.8,80.31364016]
[1644259565908,12.517,119.91,119.8,76.14264016]
[1644259566105,18.517,119.91,119.8,76.14264016]
[1644259566305,6.0,119.91,119.8,78.09194229]
[1644259566505,23.7571,119.93,119.8,78.09194229]
[1644259566707,22.2571,119.93,119.84,12.5142]
[1644259567108,22.2571,119.93,119.85,47.31961352]
[1644259567509,1.1129213,119.95,119.85,47.31961352]
[1644259567709,7.1129213,119.95,119.85,47.31961352]
[1644259567909,12.5127,119.95,119.85,59.83271352]
[1644259568110,113.1,120.0,119.86,6.13481]
[1644259568309,113.1,120.0,119.87,10.03]
[1644259568512,113.1,120.0,119.87,16.1643]
[1644259568709,113.1,120.0,119.87,22.1643]
[1644259568910,113.1,120.0,119.88,40.08888737]
[1644259569113,113.1,120.0,119.89,6.13328]
[1644259569312,125.6077,120.0,119.89,18.64158]
[1644259569609,113.1,120.0,119.9,10.03]
[1644259569811,113.1,120.0,119.91,6.13225]
[1644259570009,113.1,120.0,119.92,10.03]
[1644259570211,1.15675801,120.03,119.93,47.18113249]
[1644259570612,13.66165801,120.03,119.93,59.68593249]
[1644259571212,12.5049,120.03,119.93,59.68593249]
[1644259571413,113.1,120.02,119.93,6.13123]
[1644259571612,119.1,120.02,119.93,6.13123]
[1644259571912,12.5093,120.0,119.86,4.167]
[1644259572116,14.198,119.99,119.83,4.168]
[1644259572311,70.12506442,119.99,119.81,6.0]
[1644259572511,70.12506442,119.99,119.84,36.44830543]
[1644259572512,113.1,119.96,119.84,36.44830543]
[1644259572811,113.1,119.96,119.85,12.5126]
[1644259573013,113.1,119.96,119.86,16.16481]
[1644259573411,113.1,119.96,119.86,22.16481]
[1644259573615,114.27954884,119.96,119.87,37.97832606]
[1644259573811,114.27954884,119.96,119.88,6.13379]
[1644259574013,113.1,119.96,119.88,6.13379]
[1644259574412,119.1,119.96,119.88,6.13379]
[1644259574615,113.1,119.96,119.88,6.13379]
[1644259575013,2.14682857,119.95,119.88,6.13379]
[1644259575217,2.14682857,119.95,119.82,10.03]
[1644259575417,23.83053867,119.94,119.83,6.13635]
[1644259575614,4.17,119.93,119.83,6.13635]
[1644259575817,12.17682857,119.93,119.83,6.13635]
[1644259576015,12.519,119.9,119.83,6.13635]
[1644259576417,20.66582857,119.9,119.83,6.13635]
[1644259576619,18.519,119.9,119.83,6.13635]
[1644259577317,18.519,119.9,119.84,44.10951373]
[1644259577516,12.519,119.9,119.84,44.10951373]
[1644259577917,12.519,119.9,119.8,12.5174]
[1644259578117,12.519,119.9,119.8,18.65528]
[1644259578918,12.519,119.9,119.81,34.69229739]
[1644259579118,12.519,119.9,119.83,46.51932157]
[1644259579321,12.519,119.9,119.84,6.13584]
[1644259580119,12.519,119.9,119.85,47.4784962]
[1644259580318,23.9883,119.92,119.86,6.13481]
[1644259580522,12.5163,119.92,119.86,6.13481]
[1644259580719,18.5163,119.92,119.86,6.13481]
[1644259585123,28.5463,119.92,119.86,6.13481]
[1644259588531,18.5163,119.92,119.86,6.13481]
[1644259588931,26.88043585,119.92,119.86,6.13481]
[1644259589131,41.08043585,119.92,119.86,6.13481]
[1644259590232,36.91043585,119.92,119.86,6.13481]
[1644259590430,28.5463,119.92,119.86,6.13481]
[1644259592634,30.69312857,119.92,119.86,6.13481]
[1644259594861,20.66312857,119.92,119.86,6.13481]
[1644259596562,20.66312857,119.92,119.86,6.03481]